fUST/lending_fUST_20251125
["ID","MTS","AMOUNT","RATE_DAILY","PERIOD"]
[394854147,1764020716178,14.54022074,8.766e-05,2]
[394854148,1764020716211,485.45977926,8.766e-05,2]
[394854149,1764020716533,500.0,8.766e-05,2]
[394854150,1764020716871,500.0,8.766e-05,2]
[394854151,1764020717195,500.0,8.766e-05,2]
[394854152,1764020717547,500.0,8.766e-05,2]
[394854153,1764020717855,500.0,8.766e-05,2]
[394854154,1764020718949,500.0,8.766e-05,2]
[394854155,1764020719256,500.0,8.766e-05,2]
[394854156,1764020719589,500.0,8.766e-05,2]
[394854157,1764020719906,266.4511033,8.766e-05,2]
[394854158,1764020722042,5248.09911744,8.679e-05,2]
[394854159,1764020722067,5592.84119451,8.679e-05,2]
[394854160,1764020730336,2318.18806239,8.679e-05,2]
[394854161,1764020739005,2088.9807431,8.679e-05,2]
[394854162,1764020739027,3869.22834435,8.679e-05,2]
[394854164,1764020746845,6130.78165565,8.679e-05,2]
[394854165,1764020746870,1461.71320077,8.679e-05,2]
[394854166,1764020755413,3045.97609007,8.679e-05,2]
[394854167,1764020760512,373.06533201,8.766e-05,2]
[394854168,1764020762198,156.0,1e-05,2]
[394854169,1764020762284,300.0,8.766e-05,2]
[394854170,1764020762914,156.0,1.6e-05,2]
[394854171,1764020762964,156.0,2.2e-05,2]
[394854172,1764020763143,156.0,2.8e-05,2]
[394854173,1764020763269,1170.73164918,8.679e-05,2]
[394854174,1764020763488,156.0,3.4e-05,2]
[394854175,1764020771309,439.15494182,8.679e-05,2]
[394854176,1764020786533,1326.85799748,8.679e-05,2]
[394854177,1764020801097,-162.56858102,8.767e-05,2]
[394854179,1764020883532,500.0,8.766e-05,2]
[394854180,1764020883581,500.0,8.766e-05,2]
[394854181,1764020883624,102.51078867,8.766e-05,2]
[394854182,1764020883655,397.48921133,8.766e-05,2]
[394854183,1764020883695,500.0,8.766e-05,2]
[394854184,1764020883734,500.0,8.766e-05,2]
[394854185,1764020883786,576.64511033,8.766e-05,2]
[394854186,1764020883837,500.0,8.766e-05,2]
[394854187,1764020883891,500.0,8.766e-05,2]
[394854188,1764020884067,500.0,8.766e-05,2]
[394854189,1764020884111,500.0,8.766e-05,2]
[394854190,1764020884157,500.0,8.766e-05,2]
[394854191,1764020884212,500.0,8.766e-05,2]
[394854195,1764020931076,500.0,8.766e-05,2]
[394854196,1764020931118,500.0,8.766e-05,2]
[394854197,1764020931162,500.0,8.766e-05,2]
[394854198,1764020931241,576.64511033,8.766e-05,2]
[394854199,1764020931303,500.0,8.766e-05,2]
[394854200,1764020931339,500.0,8.766e-05,2]
[394854201,1764020931376,500.0,8.766e-05,2]
[394854202,1764020931437,500.0,8.766e-05,2]
[394854203,1764020931487,500.0,8.766e-05,2]
[394854204,1764020931613,449.23056801,8.766e-05,2]
[394854205,1764020931642,50.76943199,8.766e-05,2]
[394854206,1764020931687,500.0,8.766e-05,2]
[394854207,1764020945458,500.0,8.766e-05,2]
[394854208,1764020945508,500.0,8.766e-05,2]
[394854209,1764020945614,500.0,8.766e-05,2]
[394854210,1764020945679,500.0,8.766e-05,2]
[394854211,1764020945721,500.0,8.766e-05,2]
[394854212,1764020945761,500.0,8.766e-05,2]
[394854213,1764020945797,500.0,8.766e-05,2]
[394854214,1764020945842,500.0,8.766e-05,2]
[394854215,1764020945892,500.0,8.766e-05,2]
[394854216,1764020945949,330.26878876,8.766e-05,2]
[394854222,1764020978348,4618.97177925,8.667e-05,2]
[394854223,1764020978374,10000.01,8.667e-05,2]
[394854224,1764020978397,10000.01,8.667e-05,2]
[394854225,1764020978420,10000.01,8.667e-05,2]
[394854259,1764021032507,-597.21929559,8.579e-05,2]
[394854261,1764021032519,-294.78070441,8.579e-05,2]
[394854263,1764021032527,-12059.57341209,8.58e-05,2]
[394854265,1764021032537,-500.0,8.643e-05,2]
[394854267,1764021032546,-500.0,8.643e-05,2]
[394854269,1764021032555,-500.0,8.643e-05,2]
[394854271,1764021032564,-44425.63311806,8.667e-05,2]
[394854273,1764021032575,-956.62484928,8.667e-05,2]
[394854332,1764021038412,-889.78,8.667e-05,2]
[394854335,1764021038474,-162576.86330667,8.667e-05,2]
[394854361,1764021047631,-26185.275,8.667e-05,2]
[394854362,1764021047667,-17877.07511503,8.667e-05,2]
[394854363,1764021047678,-500.0,8.667e-05,2]
[394854364,1764021054073,10000.01,8.58e-05,2]
[394854366,1764021076290,300.0,8.579e-05,2]
[394854367,1764021077548,553.75245802,8.643e-05,2]
[394854368,1764021079781,500.0,8.643e-05,2]
[394854371,1764021099111,300.0,8.579e-05,2]
[394854373,1764021121940,300.0,8.579e-05,2]
[394854374,1764021144225,300.0,8.578e-05,2]
[394854375,1764021167116,300.0,8.578e-05,2]
[394854376,1764021189600,300.0,8.578e-05,2]
[394854379,1764021211848,300.0,8.578e-05,2]
[394854380,1764021234706,300.0,8.578e-05,2]
[394854382,1764021257511,300.0,8.578e-05,2]
[394854383,1764021280344,300.0,8.578e-05,2]
[394854387,1764021302470,300.0,8.578e-05,2]
[394854388,1764021325894,741.0,8.578e-05,2]
[394854389,1764021348619,741.0,8.578e-05,2]
[394854391,1764021371305,741.0,8.578e-05,2]
[394854392,1764021394191,741.0,8.578e-05,2]
[394854394,1764021416522,741.0,8.578e-05,2]
[394854399,1764021439145,741.0,8.578e-05,2]
[394854402,1764021462060,741.0,8.578e-05,2]
[394854403,1764021478341,158.09204692,8.578e-05,2]
[394854404,1764021486328,741.0,8.578e-05,2]
[394854409,1764021508705,741.0,8.578e-05,2]
[394854411,1764021530831,741.0,8.578e-05,2]
[394854413,1764021553177,741.0,8.578e-05,2]
[394854414,1764021555477,6998.7496804,7.982e-05,2]
[394854417,1764021569386,-441.0,8.665e-05,2]
[394854418,1764021569416,-300.0,8.665e-05,2]
[394854420,1764021576054,158.3496255,8.579e-05,2]
[394854421,1764021584545,-158.3496255,8.665e-05,2]
[394854422,1764021584581,-500.0,8.666e-05,2]
[394854423,1764021584617,-500.0,8.666e-05,2]
[394854424,1764021584652,-500.0,8.666e-05,2]
[394854425,1764021584686,-500.0,8.666e-05,2]
[394854426,1764021584719,-500.0,8.666e-05,2]
[394854427,1764021584754,-500.0,8.666e-05,2]
[394854428,1764021584791,-500.0,8.666e-05,2]
[394854429,1764021584827,-500.0,8.666e-05,2]
[394854430,1764021584868,-500.0,8.666e-05,2]
[394854431,1764021584905,-183.310749,8.666e-05,2]
[394854432,1764021585175,-316.689251,8.666e-05,2]
[394854433,1764021585210,-500.0,8.666e-05,2]
[394854434,1764021585245,-227.10411089,8.666e-05,2]
[394854435,1764021585281,-500.0,8.666e-05,2]
[394854436,1764021585317,-500.0,8.666e-05,2]
[394854437,1764021585351,-500.0,8.666e-05,2]
[394854438,1764021585387,-500.0,8.666e-05,2]
[394854439,1764021585422,-500.0,8.666e-05,2]
[394854440,1764021585456,-500.0,8.666e-05,2]
[394854441,1764021585490,-500.0,8.666e-05,2]
[394854442,1764021585525,-412.42327622,8.666e-05,2]
[394854443,1764021585681,-87.57672378,8.666e-05,2]
[394854444,1764021585728,-156.02387167,8.666e-05,2]
[394854446,1764021598377,9512.8088091,8.58e-05,2]
[394854447,1764021598402,10000.01,8.58e-05,2]
[394854448,1764021598425,9159.29390043,8.58e-05,2]
[394854449,1764021602350,300.0,8.666e-05,2]
[394854450,1764021627329,2000.0,8.662e-05,2]
[394854452,1764021643690,310.940023,8.666e-05,2]
[394854453,1764021643723,500.0,8.666e-05,2]
[394854454,1764021643753,500.0,8.666e-05,2]
[394854455,1764021643790,500.0,8.666e-05,2]
[394854456,1764021643832,500.0,8.666e-05,2]
[394854457,1764021643873,300.0,8.666e-05,2]
[394854458,1764021653964,500.0,8.666e-05,2]
[394854459,1764021654033,500.0,8.666e-05,2]
[394854460,1764021654387,500.0,8.666e-05,2]
[394854461,1764021654653,500.0,8.666e-05,2]
[394854462,1764021655019,500.0,8.666e-05,2]
[394854463,1764021655328,500.0,8.666e-05,2]
[394854464,1764021655635,500.0,8.666e-05,2]
[394854465,1764021655954,500.0,8.666e-05,2]
[394854466,1764021656260,500.0,8.666e-05,2]
[394854467,1764021656552,500.0,8.666e-05,2]
[394854468,1764021656849,89.069977,8.666e-05,2]
[394854469,1764021656872,410.930023,8.666e-05,2]
[394854470,1764021657295,500.0,8.666e-05,2]
[394854471,1764021657696,500.0,8.666e-05,2]
[394854472,1764021657990,319.39624819,8.666e-05,2]
[394854473,1764021662596,300.0,8.666e-05,2]
[394854474,1764021663050,500.0,8.666e-05,2]
[394854475,1764021663100,500.0,8.666e-05,2]
[394854476,1764021663138,500.0,8.666e-05,2]
[394854477,1764021663198,500.0,8.666e-05,2]
[394854478,1764021663254,500.0,8.666e-05,2]
[394854479,1764021663330,192.19011856,8.666e-05,2]
[394854483,1764021703878,162.611,8.494e-05,2]
[394854489,1764021851232,152.1559917,8.58e-05,2]
[394854679,1764021995216,4962.72661855,8.567e-05,2]
[394854680,1764021995240,10000.01,8.567e-05,2]
[394854681,1764021995264,10000.01,8.567e-05,2]
[394854682,1764021995287,10000.01,8.567e-05,2]
[394854683,1764022008107,-153.19725063,8.567e-05,2]
[394854684,1764022009956,993.15859071,8.481e-05,2]
[394854685,1764022018351,6779.45739138,8.481e-05,2]
[394854760,1764022229116,1644.58,0.0002,120]
[394854774,1764022231850,-300.0,8.565e-05,2]
[394854775,1764022231860,-300.0,8.565e-05,2]
[394854776,1764022231870,-174.33059621,8.565e-05,2]
[394855033,1764022239951,-125.66940379,8.565e-05,2]
[394855035,1764022239961,-1064.70059706,8.565e-05,2]
[394856615,1764022273585,435.29940294,8.479e-05,2]
[394856617,1764022281820,167.07545631,8.479e-05,2]
[394856618,1764022297779,435.29940294,8.479e-05,2]
[394856620,1764022308481,-135.29940294,8.565e-05,2]
[394856621,1764022308503,-300.0,8.565e-05,2]
[394856622,1764022308527,-63.06981394,8.566e-05,2]
[394856623,1764022310715,-300.0,8.566e-05,2]
[394856624,1764022312273,-220.13191091,8.566e-05,2]
[394856625,1764022316117,-282.03627464,8.566e-05,2]
[394856626,1764022318212,-405.22356041,8.566e-05,2]
[394856627,1764022320057,1772.37749149,8.48e-05,2]
[394856628,1764022324008,-323.19201906,8.566e-05,2]
[394856649,1764022354696,-300.0,8.566e-05,2]
[394856650,1764022356755,-265.09591958,8.566e-05,2]
[394856651,1764022358413,-189.61737878,8.566e-05,2]
[394856652,1764022360061,-234.06841951,8.566e-05,2]
[394856653,1764022362117,-265.6615683,8.566e-05,2]
[394856654,1764022365465,-203.19679978,8.566e-05,2]
[394856655,1764022367465,-157.02132684,8.566e-05,2]
[394856656,1764022369464,-241.29289396,8.566e-05,2]
[394856657,1764022372220,-228.82068518,8.566e-05,2]
[394856658,1764022386617,-300.0,8.565e-05,2]
[394856660,1764022389498,-6897.63214155,8.566e-05,2]
[394856661,1764022389773,-10000.01,8.566e-05,2]
[394856662,1764022389919,-10000.01,8.566e-05,2]
[394856663,1764022392247,-10000.01,8.566e-05,2]
[394856664,1764022404808,499.1322354,8.565e-05,2]
[394856665,1764022404858,500.0,8.565e-05,2]
[394856666,1764022404908,500.0,8.565e-05,2]
[394856667,1764022404956,500.0,8.565e-05,2]
[394856668,1764022405073,500.0,8.565e-05,2]
[394856669,1764022405122,500.0,8.565e-05,2]
[394856670,1764022405179,500.0,8.565e-05,2]
[394856671,1764022405233,500.0,8.565e-05,2]
[394856672,1764022405292,294.05834227,8.565e-05,2]
[394856674,1764022417610,500.0,8.565e-05,2]
[394856675,1764022417668,500.0,8.565e-05,2]
[394856676,1764022417704,500.0,8.565e-05,2]
[394856677,1764022417758,500.0,8.565e-05,2]
[394856678,1764022417814,500.0,8.565e-05,2]
[394856679,1764022421255,500.0,8.565e-05,2]
[394856680,1764022421307,257.71069424,8.565e-05,2]
[394856681,1764022429884,-9423.90928756,8.566e-05,2]
[394856682,1764022429907,-161.57586893,8.567e-05,2]
[394856683,1764022442290,300.0,8.566e-05,2]
[394856684,1764022496890,500.0,8.566e-05,2]
[394856685,1764022496936,341.90077138,8.566e-05,2]
[394856686,1764022496996,500.0,8.566e-05,2]
[394856687,1764022497069,616.03335338,8.566e-05,2]
[394856688,1764022497120,266.47655193,8.566e-05,2]
[394856689,1764022502016,300.0,8.566e-05,2]
[394856690,1764022507859,1200.0,8.566e-05,2]
[394856691,1764022518090,500.0,8.566e-05,2]
[394856692,1764022518141,500.0,8.566e-05,2]
[394856693,1764022536322,500.0,8.566e-05,2]
[394856694,1764022536584,421.56203803,8.566e-05,2]
[394856695,1764022548997,-326.88770865,8.567e-05,2]
[394856696,1764022551056,-300.0,8.567e-05,2]
[394856698,1764022553355,316.68268166,8.566e-05,2]
[394856699,1764022554158,500.0,8.566e-05,2]
[394856700,1764022554241,500.0,8.566e-05,2]
[394856701,1764022562198,300.0,8.566e-05,2]
[394856702,1764022563641,500.0,8.566e-05,2]
[394856703,1764022563692,500.0,8.566e-05,2]
[394856705,1764022573730,500.0,8.566e-05,2]
[394856706,1764022573783,500.0,8.566e-05,2]
[394856708,1764022669772,671.0,8.566e-05,2]
[394856715,1764022751095,-423.3186485,8.567e-05,2]
[394856716,1764022755338,-391.21547511,8.567e-05,2]
[394856717,1764022757516,-244.55415821,8.567e-05,2]
[394856718,1764022765987,-215.34911615,8.567e-05,2]
[394856720,1764022802496,300.0,8.566e-05,2]
[394856721,1764022807780,327.0,8.566e-05,2]
[394856726,1764022903919,162.611,8.396e-05,2]
[394856727,1764022976547,-200.0,8.567e-05,2]
[394856729,1764022982259,297.0,8.566e-05,2]
[394856730,1764022990490,1504.15428031,8.467e-05,2]
[394856731,1764022990518,10000.01,8.467e-05,2]
[394856732,1764022990546,10000.01,8.467e-05,2]
[394856733,1764022990573,10000.01,8.467e-05,2]
[394856734,1764023002199,-229.38193032,8.467e-05,2]
[394856735,1764023017525,229.38193032,8.382e-05,2]
[394856736,1764023047947,184.21412825,8.382e-05,2]
[394856747,1764023194141,-177.88596856,8.466e-05,2]
[394856792,1764023321255,-341.23971693,8.466e-05,2]
[394856793,1764023395996,-154.46720897,8.465e-05,2]
[394856794,1764023403456,23891.34,0.0002,120]
[394856795,1764023412588,-154.46532985,8.465e-05,2]
[394856796,1764023414345,-151.61495586,8.465e-05,2]
[394856797,1764023416730,-193.91971429,8.465e-05,2]
[394856798,1764023416752,-180.25573854,8.465e-05,2]
[394856799,1764023418678,-223.92906924,8.465e-05,2]
[394856800,1764023420722,-136.83426578,8.465e-05,2]
[394856801,1764023420756,-116.35357426,8.465e-05,2]
[394856832,1764023437874,-500.0,8.464e-05,2]
[394856833,1764023437883,-500.0,8.464e-05,2]
[394856834,1764023437893,-500.0,8.464e-05,2]
[394856835,1764023437902,-500.0,8.464e-05,2]
[394856836,1764023437913,-500.0,8.464e-05,2]
[394856837,1764023437922,-500.0,8.464e-05,2]
[394856838,1764023437931,-500.0,8.464e-05,2]
[394856839,1764023437940,-500.0,8.464e-05,2]
[394856840,1764023437949,-500.0,8.464e-05,2]
[394856841,1764023437958,-500.0,8.464e-05,2]
[394856842,1764023437967,-500.0,8.464e-05,2]
[394856843,1764023437976,-304.9530205,8.464e-05,2]
[394856844,1764023437985,-500.0,8.464e-05,2]
[394856845,1764023437993,-500.0,8.464e-05,2]
[394856846,1764023438002,-500.0,8.464e-05,2]
[394856847,1764023438011,-500.0,8.464e-05,2]
[394856848,1764023438020,-500.0,8.464e-05,2]
[394856849,1764023438029,-500.0,8.464e-05,2]
[394856850,1764023438039,-500.0,8.464e-05,2]
[394856851,1764023438048,-500.0,8.464e-05,2]
[394856852,1764023438057,-33689.11636125,8.465e-05,2]
[394856853,1764023438298,-16310.88363875,8.465e-05,2]
[394856854,1764023438308,-161.50684934,8.465e-05,2]
[394856855,1764023438317,-289.47264648,8.466e-05,2]
[394856856,1764023438327,-157.49402091,8.466e-05,2]
[394856857,1764023438337,-148764.73451802,8.467e-05,2]
[394856858,1764023438353,-994.06474417,8.467e-05,2]
[394856904,1764023440097,-20769.48882774,8.467e-05,2]
[394856912,1764023440162,-498.04,8.467e-05,2]
[394856919,1764023440465,-3e-08,8.467e-05,2]
[394856935,1764023446324,-1753.12,8.467e-05,2]
[394856936,1764023452565,309.73428338,8.382e-05,2]
[394856942,1764023651017,-300.0,8.465e-05,2]
[394856943,1764023651048,-370.59365011,8.466e-05,2]
[394856944,1764023654229,-129.40634989,8.466e-05,2]
[394856945,1764023654257,-170.59365011,8.466e-05,2]
[394856946,1764023695111,-215.07254036,0.00037905,60]
[394856947,1764023695171,-3000.0,0.00037905,120]
[394856948,1764023695228,-1000.0,0.00037905,120]
[394856949,1764023695289,-2075.25,0.00037905,30]
[394856950,1764023695351,-909.16389325,0.00037905,30]
[394856951,1764023695418,-687.34200115,0.00037905,30]
[394856952,1764023695483,-1721.97226229,0.00037905,120]
[394856953,1764023695548,-197.5377227,0.00037905,120]
[394856954,1764023695615,-1537.70942221,0.00037905,30]
[394856955,1764023695687,-1220.52085072,0.00037905,30]
[394856956,1764023695765,-2048.13784331,0.00037905,32]
[394856957,1764023695828,-385.99060079,0.00037905,60]
[394856958,1764023695891,-999.999979,0.00037905,120]
[394856959,1764023695953,-298.18302372,0.00037905,120]
[394856960,1764023696019,-876.45306171,0.00037905,120]
[394856961,1764023696088,-716.60188651,0.00037905,120]
[394856962,1764023696158,-355.02894418,0.00037905,30]
[394856963,1764023696224,-2251.3998729,0.00037905,30]
[394856964,1764023696292,-169.26961315,0.00037905,30]
[394856965,1764023696366,-331.75904863,0.00037905,30]
[394856966,1764023696432,-1063.05278181,0.00037905,120]
[394856967,1764023696505,-268.10654318,0.00037905,90]
[394856968,1764023696580,-1898.06369392,0.00037905,30]
[394856969,1764023696651,-1051.22706121,0.00037905,120]
[394856970,1764023696715,-1477.12292203,0.00037905,60]
[394856971,1764023696778,-1484.51021692,0.00037905,60]
[394856972,1764023696837,-1432.27029515,0.00037905,30]
[394856973,1764023696897,-1725.58994058,0.00037905,60]
[394856974,1764023696961,-208.92946338,0.00037905,120]
[394856975,1764023697020,-1801.04771098,0.00037905,30]
[394856976,1764023697078,-1047.62320239,0.00037905,120]
[394856977,1764023697138,-155.95596028,0.00037905,60]
[394856978,1764023697197,-1554.92241072,0.00037905,30]
[394856979,1764023697257,-1038.14196847,0.00037905,120]
[394856980,1764023697322,-2450.18554259,0.00037905,120]
[394856981,1764023697389,-1420.37230257,0.00037905,60]
[394856982,1764023697462,-1022.40422993,0.00037905,60]
[394856983,1764023697528,-321.62892924,0.00037905,20]
[394856984,1764023697593,-300.0,0.00037905,20]
[394856985,1764023697655,-1923.07552725,0.00037905,120]
[394856986,1764023697714,-1358.51031118,0.00037905,120]
[394856987,1764023697777,-1000.0,0.00037905,120]
[394856988,1764023697841,-1000.0,0.00037905,120]
[394856989,1764023697903,-1000.0,0.00037905,120]
[394856990,1764023697964,-1000.0,0.00037905,120]
[394856991,1764023698023,-1000.0,0.00037905,120]
[394856992,1764023698088,-1000.0,0.00037905,120]
[394856993,1764023698149,-1000.0,0.00037905,120]
[394856994,1764023698209,-616.3602741,0.00037905,120]
[394856995,1764023698270,-2519.51036983,0.00037905,20]
[394856996,1764023698334,-1029.43,0.00037905,120]
[394856997,1764023698398,-2000.0,0.00037905,120]
[394856998,1764023698461,-894.0,0.00037905,120]
[394856999,1764023698522,-580.23003,0.00037905,120]
[394857000,1764023698584,-27621.51819095,0.00037905,120]
[394857001,1764023698645,-156.83111989,0.00037905,30]
[394857002,1764023698707,-607794.26414805,0.00037905,60]
[394857003,1764023698768,-206.27339913,0.00037905,120]
[394857004,1764023698831,-297.76034,0.00037905,60]
[394857005,1764023698898,-210336.17126756,0.00037905,20]
[394857006,1764023698964,-49900.22436,0.00037905,30]
[394857007,1764023699029,-1937.0,0.00037905,120]
[394857008,1764023699090,-234.707,0.00037905,120]
[394857009,1764023699155,-522.98147267,0.00037905,60]
[394857010,1764023699224,-601.3964844,0.00037905,120]
[394857011,1764023699293,-175.526053,0.00037905,22]
[394857012,1764023699362,-861.3699909,0.00037905,120]
[394857013,1764023699427,-1159.0,0.00037905,30]
[394857014,1764023699490,-139146.4345675,0.00037905,60]
[394857015,1764023699555,-422.81252626,0.00037905,20]
[394857016,1764023699620,-174.85043433,0.00037905,30]
[394857017,1764023699685,-448.0,0.00037905,120]
[394857018,1764023699901,-561.84343809,0.00037905,60]
[394857019,1764023699966,-81940.0,0.00037905,120]
[394857020,1764023700029,-3288.37042871,0.00037905,120]
[394857021,1764023700095,-168.57931497,0.00037905,31]
[394857022,1764023700165,-1000000.0,0.00037905,30]
[394857023,1764023700243,-1000000.0,0.00037905,60]
[394857024,1764023700313,-5098.0,0.00037905,30]
[394857025,1764023700381,-1676.01440012,0.00037905,120]
[394857026,1764023700446,-12065.11563232,0.00037905,31]
[394857027,1764023700519,-305.71,0.00037905,30]
[394857028,1764023700582,-368.5637557,0.00037905,120]
[394857029,1764023700647,-5267.89086619,0.00037905,120]
[394857030,1764023700710,-28885.808715,0.00037905,30]
[394857031,1764023700780,-1857.56656095,0.00037905,120]
[394857032,1764023700847,-581.77666677,0.00037905,30]
[394857033,1764023700917,-435.49644586,0.00037905,120]
[394857034,1764023700986,-1199.27108698,0.00037905,61]
[394857035,1764023701054,-2000.0,0.00037905,30]
[394857036,1764023701122,-2000.0,0.00037905,30]
[394857037,1764023701193,-1162.399999,0.00037905,30]
[394857038,1764023701268,-293930.11887407,0.00037905,20]
[394857039,1764023701346,-454570.68820634,0.00037905,30]
[394857040,1764023712453,-1538211.28179366,0.00037905,30]
[394857041,1764023712526,-2362746.70308566,0.00037905,20]
[394857042,1764023712596,-504.8433179,0.00037905,110]
[394857043,1764023712662,-98537.17180278,0.00037905,30]
[394857044,1764023716614,-162418.18454455,0.00037905,30]
[394857045,1764023716685,-2090202.30892334,0.00037905,20]
[394857046,1764023716755,-151.0,0.00037905,31]
[394857047,1764023716824,-151.0,0.00037905,31]
[394857048,1764023716890,-151.0,0.00037905,31]
[394857049,1764023716954,-151.0,0.00037905,31]
[394857050,1764023717016,-151.0,0.00037905,31]
[394857051,1764023717085,-151.0,0.00037905,31]
[394857052,1764023717152,-151.0,0.00037905,31]
[394857053,1764023717219,-151.0,0.00037905,31]
[394857054,1764023717287,-151.0,0.00037905,31]
[394857055,1764023717358,-151.0,0.00037905,31]
[394857056,1764023717427,-151.0,0.00037905,31]
[394857057,1764023717494,-151.0,0.00037905,31]
[394857058,1764023717564,-151.0,0.00037905,31]
[394857059,1764023717633,-151.0,0.00037905,31]
[394857060,1764023717697,-156.836127,0.00037905,31]
[394857061,1764023717762,-748.821618,0.00037905,31]
[394857062,1764023717829,-748.821618,0.00037905,31]
[394857063,1764023717893,-748.821618,0.00037905,31]
[394857064,1764023717960,-748.821618,0.00037905,31]
[394857065,1764023718025,-748.821618,0.00037905,31]
[394857066,1764023718090,-748.821618,0.00037905,31]
[394857067,1764023718168,-748.821618,0.00037905,31]
[394857068,1764023718251,-748.821618,0.00037905,31]
[394857069,1764023718344,-748.821618,0.00037905,31]
[394857070,1764023718440,-748.821618,0.00037905,31]
[394857071,1764023718522,-748.821618,0.00037905,31]
[394857072,1764023718589,-748.821618,0.00037905,31]
[394857073,1764023718654,-748.821618,0.00037905,31]
[394857074,1764023718718,-748.821618,0.00037905,31]
[394857075,1764023718788,-151.0,0.00037905,31]
[394857076,1764023718857,-259.835632,0.00037905,31]
[394857077,1764023718926,-748.821618,0.00037905,31]
[394857078,1764023718992,-748.821618,0.00037905,31]
[394857079,1764023719061,-748.821618,0.00037905,31]
[394857080,1764023719131,-748.821618,0.00037905,31]
[394857081,1764023719202,-748.821618,0.00037905,31]
[394857082,1764023719274,-748.821608,0.00037905,31]
[394857083,1764023719344,-151.0,0.00037905,31]
[394857084,1764023719414,-151.0,0.00037905,31]
[394857085,1764023719484,-151.0,0.00037905,31]
[394857086,1764023719555,-151.0,0.00037905,31]
[394857087,1764023719641,-151.0,0.00037905,31]
[394857088,1764023719718,-151.0,0.00037905,31]
[394857089,1764023719790,-151.0,0.00037905,31]
[394857090,1764023719858,-151.0,0.00037905,31]
[394857091,1764023719924,-151.0,0.00037905,31]
[394857092,1764023719986,-151.0,0.00037905,31]
[394857093,1764023720048,-151.0,0.00037905,31]
[394857094,1764023720113,-151.0,0.00037905,31]
[394857095,1764023720177,-151.0,0.00037905,31]
[394857096,1764023720240,-151.0,0.00037905,31]
[394857097,1764023720308,-170.482322,0.00037905,31]
[394857098,1764023720378,-151.0,0.00037905,30]
[394857099,1764023720447,-151.0,0.00037905,30]
[394857100,1764023720516,-151.0,0.00037905,30]
[394857101,1764023720585,-151.0,0.00037905,30]
[394857102,1764023720649,-175.624146,0.00037905,30]
[394857103,1764023720713,-285.334219,0.00037905,31]
[394857104,1764023720774,-285.334219,0.00037905,31]
[394857105,1764023720835,-285.334219,0.00037905,31]
[394857106,1764023720898,-285.334219,0.00037905,31]
[394857107,1764023720963,-285.334219,0.00037905,31]
[394857108,1764023721027,-285.334219,0.00037905,31]
[394857109,1764023721092,-285.334219,0.00037905,31]
[394857110,1764023721156,-285.334219,0.00037905,31]
[394857111,1764023721219,-285.334219,0.00037905,31]
[394857112,1764023721286,-285.334219,0.00037905,31]
[394857113,1764023721356,-285.334219,0.00037905,31]
[394857114,1764023721428,-285.334219,0.00037905,31]
[394857115,1764023721499,-285.334219,0.00037905,31]
[394857116,1764023721570,-285.334219,0.00037905,31]
[394857117,1764023721639,-285.334219,0.00037905,31]
[394857118,1764023721703,-285.334219,0.00037905,31]
[394857119,1764023721767,-285.334219,0.00037905,31]
[394857120,1764023721829,-285.334219,0.00037905,31]
[394857121,1764023721891,-285.334219,0.00037905,31]
[394857122,1764023721955,-285.334213,0.00037905,31]
[394857123,1764023722176,-151.0,0.00037905,28]
[394857124,1764023722239,-151.0,0.00037905,28]
[394857125,1764023722302,-151.0,0.00037905,28]
[394857126,1764023722368,-151.0,0.00037905,28]
[394857127,1764023722436,-151.0,0.00037905,28]
[394857128,1764023722503,-151.0,0.00037905,28]
[394857129,1764023722570,-265.71287,0.00037905,28]
[394857130,1764023722638,-151.0,0.00037905,31]
[394857131,1764023722702,-151.0,0.00037905,31]